bitfinex/quotes_ETHUSD_20241203
["timestamp","ask_amount","ask_price","bid_price","bid_amount"]
[1733213124878,3.8063253,3621.1,3620.7,2.76186]
[1733213125052,1.578,3621.4,3620.3,0.22368998]
[1733213125383,1.578,3621.4,3620.8,2.76181]
[1733213125552,1.578,3621.4,3620.4,2.76212]
[1733213125877,1.578,3621.4,3620.6,2.76195]
[1733213126256,1.578,3621.4,3620.2,2.76227]
[1733213126576,1.578,3621.4,3620.4,2.76207]
[1733213126776,1.5267,3621.0,3620.2,2.7622]
[1733213126980,1.5267,3621.0,3619.9,3.00733022]
[1733213126981,0.02769077,3620.9,3620.5,2.76203]
[1733213127176,1.5267,3621.0,3619.9,0.24488022]
[1733213127471,1.5267,3621.0,3620.8,2.76181]
[1733213127636,1.5267,3621.0,3620.9,2.76174]
[1733213128104,1.5267,3621.0,3620.1,2.76235]
[1733213128336,1.5267,3621.0,3620.7,2.76189]
[1733213128738,1.52563881,3621.0,3620.8,2.76181]
[1733213129175,1.52563881,3621.0,3620.9,2.76174]
[1733213129376,1.52563881,3621.0,3620.2,2.76221]
[1733213129579,1.52563881,3621.0,3620.6,2.76192]
[1733213129880,1.52563881,3621.0,3620.7,2.76183]
[1733213130042,1.52563881,3621.0,3620.8,2.7618]
[1733213131840,1.52563881,3621.0,3620.9,2.76174]
[1733213132038,1.5885,3621.3,3621.1,2.76153]
[1733213132237,1.5885,3621.3,3621.2,2.76151]
[1733213132482,1.5885,3621.3,3621.2,2.83380537]
[1733213132780,1.5885,3621.3,3621.2,0.07229537]
[1733213132984,1.5885,3621.3,3621.2,2.83380537]
[1733213133395,1.5885,3621.3,3621.2,0.07229537]
[1733213133678,1.5885,3621.3,3621.0,2.76166]
[1733213133849,1.5885,3621.3,3620.4,2.76205]
[1733213133850,1.5885,3621.3,3621.2,0.07229537]
[1733213134050,1.5885,3621.3,3620.3,1.5011]
[1733213134284,3.8063253,3621.5,3621.2,2.76151]
[1733213134695,3.8063253,3621.5,3620.4,3.03044191]
[1733213134696,3.8063253,3621.5,3621.3,0.07223773]
[1733213134844,3.8063253,3621.5,3621.2,2.76148]
[1733213135184,1.659,3621.6,3620.7,2.76183]
[1733213135185,1.659,3621.6,3621.5,2.76128]
[1733213135484,1.659,3621.6,3621.5,2.83340246]
[1733213135886,1.659,3621.6,3621.5,0.07212246]
[1733213136585,1.659,3621.6,3621.2,2.76147]
[1733213136745,3.8063253,3621.5,3621.2,2.76147]
[1733213136946,3.8063253,3621.5,3621.3,0.07223773]
[1733213137885,3.83401607,3621.5,3620.8,2.7618]
[1733213138110,3.8063253,3621.5,3621.4,0.07218009]
[1733213138282,3.8063253,3621.5,3620.9,2.76171]
[1733213138486,3.8063253,3621.5,3621.4,0.07218009]
[1733213138957,3.8063253,3621.5,3621.1,2.76157]
[1733213139432,3.8063253,3621.5,3621.2,0.07229537]
[1733213139584,4.35430835,3621.5,3620.8,2.76177]
[1733213139929,4.35430835,3621.5,3621.1,2.76157]
[1733213140282,4.35430835,3621.5,3621.2,0.07229537]
[1733213140479,1.6471,3621.9,3621.8,2.76105]
[1733213140705,1.5799,3622.2,3622.0,2.76083]
[1733213141033,1.5799,3622.2,3621.2,2.78908138]
[1733213141034,1.5799,3622.2,3622.1,2.83259672]
[1733213141391,1.5799,3622.2,3622.1,0.07177672]
[1733213141726,1.5799,3622.2,3622.1,2.76082]
[1733213141931,1.5799,3622.5,3622.1,0.07177672]
[1733213142096,1.5799,3622.5,3622.3,2.76065]
[1733213142512,1.5799,3622.5,3622.4,2.83136888]
[1733213142821,0.54378225,3622.6,3622.5,2.76052]
[1733213143324,1.634,3622.8,3622.5,2.76052]
[1733213143325,1.634,3622.8,3622.6,2.76037]
[1733213143534,5.3224253,3623.1,3622.9,2.76014]
[1733213143835,5.3224253,3623.1,3623.0,0.07042331]
[1733213143979,5.3224253,3623.1,3622.5,4.26846]
[1733213143980,3.8063253,3623.1,3622.5,4.26846]
[1733213144192,3.8063253,3623.1,3622.9,2.76014]
[1733213144419,4.37017189,3623.1,3623.0,0.07019833]
[1733213145328,4.37017189,3623.1,3622.8,2.76027]
[1733213145526,4.37017189,3623.1,3623.0,0.07019833]
[1733213145709,4.37017189,3623.1,3622.8,2.76027]
[1733213145710,3.8063253,3623.1,3622.9,0.07025592]
[1733213145887,3.8063253,3623.1,3622.8,2.76027]
[1733213146089,3.8063253,3623.1,3623.0,0.07019833]
[1733213146289,3.8063253,3623.1,3622.8,2.76027]
[1733213146628,3.8063253,3623.1,3622.9,0.07025592]
[1733213147786,1.5161,3623.4,3622.9,0.07025592]
[1733213147984,3.8063253,3623.5,3623.1,2.76]
[1733213148226,3.8063253,3623.5,3623.2,0.06997796]
[1733213148896,3.8063253,3623.5,3623.2,2.82995796]
[1733213149103,3.8063253,3623.5,3623.2,0.06997796]
[1733213149302,3.8063253,3623.5,3623.1,2.76002]
[1733213149526,3.8063253,3623.5,3623.3,0.06992039]
[1733213149721,3.8063253,3623.5,3623.3,2.7599]
[1733213149894,3.8063253,3623.5,3623.4,0.06986281]
[1733213150439,3.8063253,3623.5,3623.3,2.75986]
[1733213150588,3.8063253,3623.5,3623.4,0.06986281]
[1733213151295,3.8063253,3623.5,3623.1,2.76006]
[1733213151496,3.8063253,3623.5,3623.4,0.06986281]
[1733213151702,3.8063253,3623.5,3623.1,2.76006]
[1733213151915,3.8063253,3623.5,3623.4,0.06986281]
[1733213152115,1.6444,3623.7,3623.2,2.75991]
[1733213152326,1.6444,3623.7,3623.4,0.06986281]
[1733213152625,1.6444,3623.7,3623.5,0.06980524]
[1733213152792,1.6444,3623.7,3623.3,2.7599]
[1733213153137,1.6444,3623.7,3623.4,0.06986281]
[1733213154203,3.8063253,3623.5,3623.4,0.06986281]
[1733213154416,3.8063253,3623.5,3622.6,1.5125]
[1733213154624,3.8063253,3623.5,3623.4,0.06940568]
[1733213154928,3.8063253,3623.5,3623.1,2.76005]
[1733213155134,3.8063253,3623.5,3623.4,0.06940568]
[1733213155331,3.8063253,3623.5,3622.8,2.76029]
[1733213155649,0.02769077,3623.4,3623.0,2.76013]
[1733213155951,0.02769077,3623.4,3622.8,3.20969315]
[1733213156154,3.8063253,3623.1,3622.3,1.531]
[1733213156353,3.8063253,3623.1,3622.5,2.76052]
[1733213156651,3.8063253,3623.1,3622.0,2.7609]
[1733213156809,3.8063253,3623.1,3621.9,1.531]
[1733213157006,1.5734,3622.6,3622.0,0.1531]
[1733213157255,1.5734,3622.6,3622.0,2.76083]
[1733213157728,1.5734,3622.6,3621.4,1.5222]
[1733213157729,1.5734,3622.6,3621.5,2.76128]
[1733213157909,1.5734,3622.6,3622.3,2.76063]
[1733213158263,1.5734,3623.0,3622.2,1.5222]
[1733213158468,1.5734,3623.0,3622.3,2.76062]
[1733213158619,0.02769077,3623.5,3622.2,1.950505]
[1733213158620,1.53,3623.4,3622.9,2.76015]
[1733213159563,1.53,3623.4,3622.5,2.76045]
[1733213159734,1.53,3623.4,3622.8,2.76029]
[1733213159933,1.53,3623.4,3623.1,2.75999]
[1733213160525,1.53,3623.4,3623.2,2.75999]
[1733213160725,3.8063253,3623.5,3623.0,1.5716]
[1733213161440,3.8063253,3623.5,3623.2,2.75998]
[1733213161647,3.8063253,3623.5,3623.3,2.75989]
[1733213162256,1.5043,3623.8,3623.3,0.433149]
[1733213162467,3.8063253,3623.9,3623.0,4.33169]
[1733213162691,1.5941,3624.1,3623.6,2.75964]
[1733213163338,1.5941,3624.1,3623.1,0.55]
[1733213163549,1.5941,3624.1,3623.3,2.75991]
[1733213163750,1.5941,3624.1,3623.1,0.55]
[1733213164045,0.55165401,3624.2,3623.8,2.75953]
[1733213164240,0.55165401,3624.2,3623.6,2.75966]
[1733213164462,0.55165401,3624.2,3623.2,0.2397629]
[1733213164843,0.55165401,3624.2,3623.9,2.75942]
[1733213165046,0.02769077,3624.1,3623.2,0.2397629]
[1733213165278,3.8063253,3623.7,3623.5,2.75974]
[1733213165791,3.8063253,3623.7,3623.6,2.75968]
[1733213166088,3.8063253,3624.1,3623.8,2.7595]
[1733213166298,3.8063253,3624.1,3623.3,2.99599629]
[1733213166299,3.8063253,3624.1,3623.3,0.23613629]
[1733213166584,3.8063253,3624.1,3623.9,2.75944]
[1733213167492,3.8063253,3624.1,3624.0,2.82800874]
[1733213167848,3.8063253,3624.5,3624.0,2.82800874]
[1733213168210,0.156481,3624.8,3624.4,1.6318]
[1733213168359,0.156481,3624.8,3624.7,2.75884]
[1733213168560,0.156481,3624.8,3624.5,2.82725125]
[1733213168768,0.156481,3624.8,3624.7,0.06814618]
[1733213169084,0.156481,3624.8,3624.7,0.06798307]
[1733213169256,0.156481,3624.8,3624.5,2.75899]
[1733213169478,0.156481,3624.8,3624.1,1.5257]
[1733213169479,0.156481,3624.8,3624.7,0.06798307]
[1733213169678,0.18417177,3624.8,3623.8,1.5079]
[1733213169880,3.8063253,3624.3,3623.8,2.75952]
[1733213170095,0.18417177,3624.8,3623.3,2.99598629]
[1733213170096,3.8063253,3623.9,3623.3,0.23613629]
[1733213170380,3.8063253,3623.9,3623.2,4.36387]
[1733213170682,3.8063253,3623.9,3623.6,2.75967]
[1733213170891,3.8063253,3623.9,3623.8,2.75953]
[1733213171041,0.156481,3624.8,3623.3,0.02759441]
[1733213171042,3.8063253,3624.3,3623.3,0.02759441]
[1733213171247,3.8063253,3624.7,3624.2,2.75922]
[1733213171750,0.156481,3624.8,3624.0,1.5512]
[1733213172056,0.156481,3624.8,3624.7,2.75884]
[1733213174484,0.156481,3624.8,3624.1,0.55]
[1733213174485,0.156481,3624.8,3624.5,2.75899]
[1733213175044,0.156481,3624.8,3624.1,0.55]
[1733213175340,0.156481,3624.8,3624.2,2.96934]
[1733213175638,1.656,3624.6,3624.2,2.96934]
[1733213175785,3.8063253,3624.7,3624.5,2.75893]
[1733213175987,3.8063253,3624.7,3624.6,2.75892]
[1733213177086,3.8063253,3624.7,3624.4,2.75905]
[1733213177283,3.8063253,3624.7,3624.1,2.7593]
[1733213177588,3.9628063,3624.8,3624.2,2.75922]
[1733213177788,3.9628063,3624.8,3624.6,2.75886]
[1733213177983,0.02769077,3624.7,3624.2,2.75922]
[1733213178196,3.9628063,3624.8,3624.2,2.75922]
[1733213178406,3.9628063,3624.8,3624.4,2.75905]
[1733213178599,3.9628063,3624.8,3624.5,2.75897]
[1733213178933,3.9628063,3624.8,3624.4,0.303498]
[1733213179135,3.9628063,3624.8,3624.1,0.27593]
[1733213179284,3.9628063,3624.8,3624.6,2.75892]
[1733213180311,3.9628063,3624.8,3624.2,2.75922]
[1733213180587,3.9628063,3624.8,3624.5,2.75895]
[1733213180806,0.156481,3624.8,3624.1,0.27593]
[1733213181015,0.156481,3624.8,3624.7,2.75884]
[1733213181312,0.156481,3624.8,3624.5,2.75899]
[1733213181524,0.156481,3624.8,3624.2,2.95511202]
[1733213181733,0.156481,3624.8,3624.7,2.75884]
[1733213182713,0.156481,3624.8,3624.7,2.82657656]
[1733213182911,0.156481,3624.8,3624.7,4.94973622]
[1733213183357,0.156481,3624.8,3624.7,5.49973622]
[1733213184417,0.156481,3624.8,3624.7,4.94973622]
[1733213185047,0.156481,3624.8,3624.7,2.82657656]
[1733213185364,0.156481,3624.8,3624.7,0.06773656]
[1733213185651,3.9628063,3624.8,3624.7,0.06773656]
[1733213185954,3.9628063,3624.8,3624.5,2.75898]
[1733213186150,3.9628063,3624.8,3624.7,0.06766769]
[1733213186349,3.9628063,3624.8,3623.9,1.6646]
[1733213186647,3.9628063,3624.8,3624.7,0.06766769]
[1733213187151,3.9628063,3624.8,3624.0,0.16646]
[1733213187355,3.9628063,3624.8,3624.7,0.06766769]
[1733213187653,3.9628063,3624.8,3624.6,2.75891]
[1733213187823,3.9628063,3624.8,3624.7,0.06766769]
[1733213188518,3.9628063,3624.8,3624.7,2.82650769]
[1733213188851,0.156481,3624.8,3624.7,2.82650769]
[1733213190552,0.156481,3624.8,3624.7,3.13674534]
[1733213190707,0.156481,3624.8,3624.7,5.25305846]
[1733213193281,0.156481,3624.8,3624.7,4.97040769]
[1733213193431,0.156481,3624.8,3624.7,2.82650769]
[1733213194983,5.5524063,3624.8,3624.7,0.06765318]
[1733213195149,5.5524063,3624.8,3624.7,0.0654737]
[1733213195345,5.5524063,3624.8,3624.7,0.06321859]
[1733213195676,4.74307076,3624.8,3624.2,2.75922]
[1733213195828,2.99698976,3624.3,3624.2,3.035142]
[1733213197172,1.746081,3624.8,3624.4,2.75905]
[1733213197380,2.99698976,3624.5,3624.2,0.275922]
[1733213197540,2.99698976,3624.5,3624.4,2.75907]
[1733213197736,0.156481,3624.8,3624.7,2.75884]
[1733213198075,3.15347076,3624.8,3624.7,2.75884]
[1733213198393,0.156481,3624.8,3624.7,3.30884]
[1733213199857,0.156481,3624.8,3624.7,2.75884]
[1733213200263,1.789481,3624.8,3624.5,2.75898]
[1733213200778,0.156481,3624.8,3624.6,2.75891]
[1733213200998,0.156481,3624.8,3624.6,3.089801]
[1733213201490,0.156481,3624.8,3624.6,2.75891]
[1733213201986,0.75,3625.2,3624.6,2.75891]
[1733213201987,0.75,3625.2,3624.7,1.6515]
[1733213202283,0.75,3625.2,3625.1,2.75854]
[1733213202480,0.75,3625.2,3625.1,2.81907061]
[1733213202836,4.54226951,3625.2,3625.1,2.81907061]
[1733213203975,4.54226951,3625.2,3625.1,3.10097767]
[1733213204173,0.75,3625.2,3625.1,3.10097767]
[1733213204404,0.75,3625.2,3625.1,0.34243767]
[1733213204623,0.75,3625.2,3625.1,3.10097767]
[1733213204803,0.75,3625.2,3625.1,2.81907061]
[1733213210730,0.75,3625.2,3625.1,3.36907061]
[1733213211524,2.3427,3625.2,3625.1,3.36907061]
[1733213212048,2.3427,3625.2,3625.1,0.06053061]
[1733213212215,6.13496951,3625.2,3625.1,0.06053061]
[1733213212413,6.13496951,3625.2,3624.7,2.75883]
[1733213212647,6.13496951,3625.2,3625.1,0.0603748]
[1733213212845,6.13496951,3625.2,3624.8,2.75875]
[1733213213051,4.54226951,3625.2,3624.8,2.75875]
[1733213213226,4.54226951,3625.2,3624.9,2.81910984]
[1733213213427,0.75,3625.2,3624.9,2.81910984]
[1733213214064,0.75,3625.2,3624.9,0.06048984]
[1733213214429,0.75,3625.2,3624.7,2.75878]
[1733213214786,0.75,3625.2,3624.8,2.75876]
[1733213214960,0.75,3625.2,3624.8,2.81930737]
[1733213215460,0.75,3625.2,3624.8,0.06054737]
[1733213215759,0.75,3625.2,3624.9,2.75866]
[1733213215961,0.75,3625.2,3624.9,0.06048984]
[1733213216251,0.75,3625.2,3625.0,2.75861]
[1733213216611,0.75,3625.2,3625.1,2.8189148]
[1733213217470,0.75,3625.2,3625.1,3.3689148]
[1733213219610,0.75,3625.2,3625.1,0.0603748]
[1733213219820,2.4047,3625.2,3625.1,0.0603748]
[1733213219961,2.4047,3625.2,3624.8,2.75877]
[1733213220485,2.4047,3625.2,3624.9,0.06053694]
[1733213221886,0.75,3625.2,3624.9,2.81922694]
[1733213222084,0.75,3625.2,3624.9,3.10114963]
[1733213222290,0.75,3625.2,3624.9,0.06053694]
[1733213222601,0.75,3625.2,3624.8,2.75876]
[1733213222800,0.75,3625.2,3625.0,0.06047942]
[1733213222964,0.75,3625.2,3624.9,2.81920694]
[1733213223302,0.75,3625.2,3625.0,0.06047942]
[1733213223760,0.75,3625.2,3625.0,2.81908942]
[1733213223964,0.75,3625.2,3625.0,2.75861]
[1733213224177,0.75,3625.2,3625.1,0.0604219]
[1733213224505,0.75,3625.2,3625.1,2.8189619]
[1733213226914,0.75,3625.2,3625.1,3.37673109]
[1733213227766,0.75,3625.2,3625.1,5.52993109]
[1733213228303,1.14940768,3626.1,3625.9,2.75793]
[1733213228461,1.14940768,3626.2,3626.0,2.75785]
[1733213228677,2.99494424,3626.2,3626.1,0.05979615]
[1733213228878,3.95107452,3626.2,3626.0,2.75785]
[1733213229088,0.95613924,3626.1,3626.0,2.75785]
[1733213229302,0.95597237,3626.1,3626.0,2.75785]
[1733213229504,1.5386,3626.0,3625.5,2.75821]
[1733213229702,2.99494424,3625.6,3625.5,2.75821]
[1733213230983,1.5386,3626.0,3625.8,2.75799]
[1733213230984,4.14435192,3626.0,3625.8,2.75799]
[1733213231178,0.95596263,3625.9,3625.8,2.75799]
[1733213231697,2.99494424,3626.0,3625.9,2.75793]
[1733213232016,3.95082897,3626.0,3625.9,2.75793]
[1733213233205,3.95079041,3626.0,3625.9,2.75793]
[1733213234103,2.99494424,3626.0,3625.9,2.75793]
[1733213234466,2.66120768,3626.3,3626.2,2.7577]
[1733213234657,6.6117511,3626.3,3626.2,2.7577]
[1733213234904,7.0895507,3626.3,3626.2,2.7577]
[1733213235059,4.50674424,3626.3,3626.2,2.7577]
[1733213236196,4.50674424,3626.3,3625.9,2.75793]
[1733213236397,1.6333,3625.9,3624.7,1.6468]
[1733213236600,1.6333,3625.9,3625.7,2.75807]
[1733213237523,1.6333,3625.9,3625.2,2.7584]
[1733213237524,1.6333,3625.9,3624.9,2.75869]
[1733213237706,1.6333,3625.9,3625.7,2.75805]
[1733213238077,1.6333,3625.9,3625.8,2.75801]
[1733213238778,2.99494424,3625.9,3625.8,2.75801]
[1733213239416,2.99494424,3625.9,3625.8,3.03656894]
[1733213239789,2.99494424,3625.9,3625.8,2.75801]
[1733213240492,1.6323,3626.4,3626.3,2.75763]
[1733213240691,4.62724424,3626.4,3626.3,2.75763]
[1733213241075,1.6323,3626.4,3626.3,2.75763]
[1733213241272,4.62724424,3626.4,3626.3,2.75763]
[1733213241475,2.99494424,3626.4,3626.3,2.81706118]
[1733213241986,2.99494424,3626.4,3626.3,3.5263863]
[1733213242300,2.99494424,3626.4,3626.3,2.81706118]
[1733213242504,2.99494424,3626.4,3626.3,0.05943118]
[1733213242813,3.95007956,3626.4,3626.1,2.75776]
[1733213243013,2.99494424,3626.4,3626.3,0.05943118]
[1733213243215,2.99494424,3626.4,3626.1,2.75776]
[1733213243726,1.14940768,3626.7,3626.1,1.5664]
[1733213244021,1.14940768,3626.7,3626.6,2.7574]
[1733213244022,2.99494424,3626.7,3626.6,2.7574]
[1733213244381,2.99494424,3626.7,3626.6,2.81663702]
[1733213248125,2.99494424,3626.7,3626.6,3.36663702]
[1733213248959,2.99494424,3627.1,3627.0,2.75709]
[1733213249130,2.99494424,3627.1,3627.0,2.81572052]
[1733213252454,2.99494424,3627.1,3627.0,3.36572052]
[1733213252685,2.99494424,3627.5,3627.4,2.75679]
[1733213253081,2.99494424,3627.5,3627.4,2.81508573]
[1733213254288,2.99494424,3627.9,3627.4,4.9601903]
[1733213254493,2.99494424,3627.9,3627.8,2.75644]
[1733213254849,2.99494424,3627.9,3627.8,2.81364793]
[1733213255893,2.99494424,3627.9,3627.8,0.05720793]
[1733213256246,2.99494424,3627.9,3627.8,2.75649]
[1733213256487,2.99494424,3627.9,3627.8,0.05709575]
[1733213256844,2.99494424,3627.9,3627.7,2.75656]
[1733213257045,2.99494424,3627.9,3627.8,0.05709575]
[1733213257493,2.99494424,3627.9,3627.5,2.75671]
[1733213257789,2.99494424,3627.9,3627.8,2.75649]
[1733213258292,2.99494424,3627.9,3627.8,2.81358575]
[1733213260205,2.99494424,3628.3,3628.0,2.7563]
[1733213260353,2.99494424,3628.3,3627.8,0.05709575]
[1733213260547,2.99494424,3628.3,3628.1,2.75624]
[1733213260749,2.99494424,3628.3,3628.2,0.05686605]
[1733213261067,2.99494424,3628.3,3627.9,2.7564]
[1733213261284,2.99494424,3628.3,3628.2,0.05686605]
[1733213261775,2.99494424,3628.3,3627.9,2.7564]
[1733213262086,2.99494424,3628.3,3628.2,0.05686605]
[1733213262295,2.99494424,3628.3,3627.9,2.7564]
[1733213262495,2.99494424,3628.3,3628.2,0.05677921]
[1733213262655,2.99494424,3628.3,3627.9,2.7564]
[1733213263006,2.99494424,3628.3,3628.0,2.75633]
[1733213263150,2.99494424,3628.3,3628.0,2.81322406]
[1733213263350,2.99494424,3628.3,3628.1,2.75625]
[1733213263587,2.99494424,3628.3,3628.2,0.05677921]
[1733213264205,2.99494424,3628.3,3628.2,2.81295921]
[1733213265597,0.156481,3628.4,3628.2,0.05677921]
[1733213265791,0.156481,3628.4,3628.3,2.75611]
[1733213266295,0.156481,3628.4,3628.3,2.8128318]
[1733213266668,0.156481,3628.4,3628.3,3.52250298]
[1733213267203,0.156481,3628.4,3628.3,4.07250298]
[1733213267402,0.156481,3628.4,3628.3,5.61260298]
[1733213269367,0.156481,3628.4,3628.3,8.61260298]
[1733213269368,1e-06,3628.4,3628.3,8.61260298]
[1733213270315,1e-06,3628.4,3628.3,5.61260298]
[1733213270489,1e-06,3628.4,3628.3,8.61260298]
[1733213270881,1e-06,3628.4,3628.3,9.17624355]
[1733213271088,1.72411153,3631.0,3629.8,2.75496]
[1733213271089,2.99494424,3630.3,3629.8,2.75496]
[1733213271508,2.99494424,3629.9,3629.7,2.75501]
[1733213272629,2.99494424,3629.9,3629.8,0.05505067]
[1733213273125,2.99494424,3629.9,3629.5,2.75519]
[1733213273323,2.99494424,3629.9,3629.6,0.0549883]
[1733213273975,2.99494424,3629.9,3629.6,2.8101083]
[1733213274141,2.99494424,3629.9,3629.6,0.0549883]
[1733213274339,2.99494424,3629.9,3629.6,2.8100983]
[1733213275302,2.99494424,3629.9,3629.6,0.0549883]
[1733213275628,1.5913,3629.8,3629.2,2.75535]
[1733213275941,1.5913,3629.8,3629.4,2.75527]
[1733213276146,1.5913,3629.8,3629.5,2.81020568]
[1733213276861,1.5913,3629.8,3629.6,2.75509]
[1733213277365,1.5913,3629.8,3629.7,0.05493093]
[1733213277961,1.5913,3629.8,3629.7,2.80997093]
[1733213278909,2.99494424,3629.9,3629.7,0.05493093]
[1733213279167,2.99494424,3629.9,3629.8,2.75497]
[1733213279474,2.99494424,3629.9,3629.8,2.80916752]
[1733213279869,1.5984,3630.1,3629.9,2.75487]
[1733213280243,2.99494424,3630.3,3629.9,2.75487]
[1733213280244,2.99494424,3630.3,3630.0,0.05408279]
[1733213280554,2.99494424,3630.3,3630.0,2.75481]
[1733213280728,2.99494424,3630.3,3630.1,0.05402543]
[1733213280933,2.99494424,3630.3,3630.2,2.75466]
[1733213281142,2.99494424,3630.3,3630.2,2.80862807]
[1733213281873,2.99494424,3630.3,3630.2,0.05396807]
[1733213282277,2.99494424,3630.3,3630.1,2.75473]
[1733213282568,2.99494424,3630.3,3630.2,2.80862807]
[1733213286149,3.02263501,3630.3,3630.2,0.05396807]
[1733213286349,3.02263501,3630.3,3630.1,2.75472]
[1733213286350,2.99494424,3630.3,3630.1,2.75472]
[1733213286576,2.99494424,3630.3,3630.2,0.05396807]
[1733213286778,2.99494424,3630.3,3630.2,2.80862807]
[1733213287893,1.5961,3630.6,3630.5,2.75444]
[1733213288053,2.3461,3631.8,3631.4,2.75373]
[1733213288252,2.3461,3631.8,3630.7,2.75428]
[1733213288253,3.55408983,3631.5,3630.7,2.75428]
[1733213288466,3.55408983,3631.5,3630.6,1.6045]
[1733213288662,3.55408983,3631.5,3631.2,2.75384]
[1733213288898,3.55408983,3631.5,3630.6,1.6045]
[1733213288899,3.55408983,3631.5,3631.4,2.75375]
[1733213289295,3.55408983,3631.5,3631.4,0.05314271]
[1733213289671,3.55408983,3631.5,3631.3,2.7538]
[1733213289868,3.55408983,3631.5,3631.4,0.05314271]
[1733213290206,5.09748983,3631.5,3630.3,2.75453]
[1733213290407,2.99494424,3631.1,3630.6,2.75436]
[1733213290614,1.5112,3631.0,3630.6,2.75436]
[1733213291290,1.5112,3631.0,3630.5,2.75441]
[1733213291690,1.5112,3631.0,3630.3,0.53939091]
[1733213291891,1.5112,3631.0,3630.5,2.75438]
[1733213292297,2.99494424,3630.7,3629.9,1.5168]
[1733213292504,2.99494424,3630.3,3629.9,2.75489]
[1733213292817,2.99494424,3630.3,3630.0,2.75474]
[1733213293014,2.99494424,3630.3,3629.6,2.75512]
[1733213293015,1.4757,3631.0,3630.7,2.75428]
[1733213293172,1.5333,3631.3,3631.0,2.75403]
[1733213293571,1.5333,3631.3,3630.4,1.5918]
[1733213293572,1.5333,3631.3,3631.1,2.75396]
[1733213293946,1.5333,3631.3,3631.1,2.75394]
[1733213295127,1.5333,3631.3,3630.9,2.75412]
[1733213295431,1.5333,3631.3,3630.5,0.55]
[1733213295596,2.99494424,3631.4,3631.2,2.75391]
[1733213296335,2.99494424,3631.4,3631.0,2.75404]
[1733213297889,2.99494424,3631.4,3631.1,0.04927454]
[1733213300203,2.99494424,3631.4,3631.1,2.75397]
[1733213300528,2.99494424,3631.4,3631.2,0.04921721]
[1733213300726,7.53878848,3631.6,3631.2,0.04921721]
[1733213301023,0.25719901,3631.5,3631.3,0.04915989]
[1733213301184,2.99494424,3631.4,3631.3,0.04915989]
[1733213301386,3.25214325,3631.4,3631.0,2.75405]
[1733213301601,2.99494424,3631.4,3631.1,0.04927454]
[1733213301889,0.25720879,3631.3,3631.1,0.04927454]
[1733213302089,1.5047,3631.2,3631.1,0.04927454]
[1733213302295,1.5047,3631.2,3629.9,2.75485]
[1733213302296,1.5047,3631.2,3630.4,1.3701]
[1733213302622,2.99494424,3631.0,3630.7,2.75424]
[1733213302819,2.99494424,3631.0,3630.4,1.3701]
[1733213302820,2.99494424,3631.0,3630.5,2.75444]
[1733213303120,2.99494424,3631.0,3630.4,1.3701]
[1733213303121,2.99494424,3631.0,3630.9,2.75413]
[1733213303429,1.2959,3630.9,3629.9,1.3131]
[1733213303721,2.99494424,3630.6,3630.2,2.75463]
[1733213304400,2.99494424,3630.6,3629.9,1.3131]
[1733213304603,2.99494424,3630.6,3630.4,2.75446]
[1733213304896,2.99494424,3630.6,3630.5,2.75444]
[1733213306923,1.2959,3630.9,3630.5,2.75444]
[1733213306924,2.99494424,3631.0,3630.8,2.75419]
[1733213310141,1.75533613,3631.5,3631.4,2.75375]
[1733213310142,0.41193613,3631.5,3631.4,2.75375]
[1733213310306,0.75,3631.8,3631.4,2.75375]
[1733213310504,0.75,3631.8,3631.7,2.75353]
[1733213310923,3.74494424,3631.8,3631.7,2.75353]
[1733213312434,1.14940768,3632.9,3632.5,1.2797]
[1733213312637,0.41199096,3633.3,3633.1,2.75246]
[1733213312845,2.99494424,3633.6,3633.1,2.75246]
[1733213313134,0.55361375,3633.4,3633.2,2.75238]
[1733213313637,1.72411153,3634.1,3633.2,2.75238]
[1733213313638,2.99494424,3633.7,3633.3,0.04398741]
[1733213313796,2.99494424,3634.0,3633.3,0.04398741]
[1733213313998,0.2574475,3633.9,3633.3,2.79629741]
[1733213314333,2.50970768,3634.2,3633.3,2.79629741]
[1733213314334,1.14940768,3634.2,3633.5,0.55]
[1733213314536,2.99494424,3634.3,3633.5,0.55]
[1733213314717,2.99494424,3634.3,3633.4,1.2814]
[1733213314718,2.99494424,3634.3,3633.7,3.30199]
[1733213315096,2.99494424,3634.3,3633.8,2.79482376]
[1733213315299,2.99494424,3633.9,3633.8,0.04289376]
[1733213315516,3.94673853,3633.9,3633.8,0.04289376]
[1733213315716,3.94673853,3633.9,3633.1,2.75246]
[1733213315919,2.99494424,3633.9,3633.1,2.75246]
[1733213316137,2.99494424,3633.9,3633.2,0.04125144]
[1733213316336,2.99494424,3634.0,3633.4,1.3541]
[1733213316548,2.99494424,3634.0,3633.1,0.55]
[1733213316695,2.99494424,3634.0,3633.2,0.02751902]
[1733213316900,2.99494424,3634.0,3633.3,0.55]
[1733213317246,2.99494424,3634.0,3633.4,2.7934065]
[1733213317451,0.25778231,3633.9,3633.4,2.7934065]
[1733213317735,0.25778231,3633.9,3633.4,0.0411765]
[1733213317938,0.25778231,3633.9,3633.5,2.75214]
[1733213318110,0.28547308,3633.9,3633.0,1.3541]
[1733213318455,1.40718999,3633.8,3632.5,1.3455]
[1733213318751,4.30655551,3634.3,3631.7,3.028873]
[1733213318752,1.72411153,3635.0,3633.9,2.75186]
[1733213318911,2.99494424,3634.7,3634.1,2.75167]
[1733213319111,2.99494424,3634.7,3634.0,0.03953301]
[1733213319317,2.99494424,3634.7,3634.2,0.03939698]
[1733213319514,2.99494424,3634.7,3634.2,2.7516]
[1733213319822,2.99494424,3635.1,3634.4,0.55]
[1733213320034,2.37972557,3636.0,3634.4,0.55]
[1733213320035,1.72411153,3635.6,3635.3,1.2935]
[1733213320223,2.99494424,3635.8,3635.2,0.55]
[1733213320425,2.99494424,3635.8,3635.3,0.03842629]
[1733213320839,1.253,3636.1,3635.3,2.78921629]
[1733213321041,2.99494424,3636.0,3635.4,3.30072]
[1733213321244,4.2022802,3636.7,3635.3,0.03842629]
[1733213321245,1.72411153,3636.7,3635.6,0.55]
[1733213321471,2.99494424,3636.5,3635.5,4.1743919]